Workbook

Sheet 18
A1: МБОУ СОШ №18 с УИОП
A3: Статистический отчет на 01.09.2023
A4: Суммарный учет библиотечного фонда
B6: всего книг | C6: книг, записанных в инв. книгу | D6: сумма | E6: Распределение книг по содержанию | Q6: Из отраслевой литературы по языкам
E7: Художественная литература | G7: Справочная литература | J7: Отраслевая литература | Q7: Татарский язык по графам (10.11.12.13.14.15.16) суммарной книги | R7: Немецкий язык | S7: Английский язык | T7: другие языки
E8: на русском | F8: на татарском | G8: на русском | H8: на татарском | I8: другие языки | J8: педагогика (74) | K8: Общественно- гуманитарные науки (6-8) | L8: естественные науки (2) | M8: прикладные науки (3,4,5) | N8: языкознание (81) | O8: литературоведение (83) | P8: прочие
A9: 1 | B9: 2 | C9: 3 | D9: 4 | E9: 5 | F9: 6 | G9: 7 | H9: 8 | I9: 9 | J9: 10 | K9: 11 | L9: 12 | M9: 13 | N9: 14 | O9: 15 | P9: 16 | Q9: 17 | R9: 18 | S9: 19 | T9: 20
A10: состоит на 01.01.2022 | B10: =C10 -> 19256 | C10: =E10+F10+G10+H10+I10+J10+K10+L10+M10+N10+O10+P10 -> 19256 | E10: 9974 | F10: 3436 | G10: 111 | H10: 51 | J10: 1820 | K10: 1137 | L10: 963 | M10: 328 | N10: 716 | O10: 719 | P10: 1 | Q10: 746 | R10: 52 | S10: 102
A11: поступило | B11: =C11 -> 45 | C11: =E11+F11+G11+H11+I11+J11+K11+L11+M11+N11+O11+P11 -> 45 | H11: 40 | K11: 2 | L11: 2 | O11: 1 | Q11: 5
A12: выбыло | B12: 0 | C12: 0
A13: состоит на 01.09.2023 | B13: 19301 | C13: =C10+C11-C12 -> 19301 | E13: =E10+E11-E12 -> 9974 | F13: =F10+F11-F12 -> 3436 | G13: 111 | H13: 91 | I13: 0 | J13: 1820 | K13: 1139 | L13: 965 | M13: 328 | N13: 716 | O13: 720 | P13: 1 | Q13: 751 | R13: 52 | S13: 102 | T13: 0
A15: Суммарный учет фонда учебников
B17: количество | C17: сумма | D17: федеральный | E17: региональный | F17: ИЗО | G17: Музыка | H17: Части | J17: физ-ра
H18: на русском | I18: на татарском
A19: состоит на 01.01.2022 | B19: =D19+E19 -> 22091 | D19: 19582 | E19: 2509 | F19: 103 | G19: 91 | H19: 5293 | I19: 547
A20: поступило | B20: =D20+E20 -> 2671 | D20: 2671 | F20: 49 | G20: 2 | H20: 900 | J20: 2
A21: выбыло | B21: 0
A22: состоит на 01.09.2023 | B22: 24762 | D22: =D19+D20-D21 -> 22253 | E22: =E19+E20-E21 -> 2509 | F22: 152 | G22: 93 | H22: 6193 | I22: 547 | J22: 2
A23: к переносу в БАРС | B23: 17775 | D23: =D22-F22-G22-H22-J22 -> 15813 | E23: =E22-I22 -> 1962
A25: Суммарный учет брошюры, журналы и газеты, электронные издания,АВД, дидактика, наглядные материалыCD,DVD, AVD
B27: количество | C27: сумма | D27: брошюры | E27: журналы и газеты | F27: электронные издания (CD, DVD) | G27: АВД (кассеты, диафильмы, видеокассеты) | H27: дидактика | I27: наглядные (карты, таблицы и т.п.) | J27: Примечание
A28: состоит на 01.01.2022 | B28: =D28+E28+F28+G28+H28+I28 -> 4827 | D28: 548 | H28: 4268 | I28: 11
A29: поступило | B29: =D29+E29+F29+G29+H29+I29 -> 286 | D29: 9 | H29: 276 | I29: 1
A30: выбыло | B30: =D30+E30+F30+G30+H30+I30 -> 0
A31: состоит на 01.09.2023 | B31: =D31+E31+F31+G31+H31+I31 -> 5113 | D31: =548+D29-D30 -> 557 | E31: =E28+E29-E30 -> 0 | F31: 0 | G31: 0 | H31: 4,544 | I31: 12
